bitfinex-derivatives/quotes_BTCF0:USTF0_20260131
["timestamp","ask_amount","ask_price","bid_price","bid_amount"]
[1769902644826,0.10252,79063.0,79046.0,0.00933974]
[1769902646631,0.02262517,79062.0,79041.0,0.012667]
[1769902646926,0.012664,79062.0,79044.0,0.00933974]
[1769902647331,0.10252,79061.0,79044.0,0.00933974]
[1769902648234,0.10252,79061.0,79046.0,0.00933974]
[1769902648430,0.10252,79061.0,79047.0,0.012666]
[1769902649134,0.10252,79061.0,79047.0,0.02200574]
[1769902649334,0.00996117,79068.0,79047.0,0.02200574]
[1769902649533,0.00996117,79068.0,79049.0,0.012666]
[1769902649734,0.10256,79067.0,79055.0,0.012665]
[1769902649935,0.00014184,79074.0,79055.0,0.00933974]
[1769902650339,0.00014184,79074.0,79063.0,0.012663]
[1769902650635,0.00014184,79074.0,79060.0,0.012664]
[1769902651234,0.00014184,79074.0,79060.0,0.02200374]
[1769902651431,0.00014184,79074.0,79062.0,0.012664]
[1769902651635,0.10256,79080.0,79063.0,0.00933974]
[1769902652730,0.0001336,79079.0,79063.0,0.00933974]
[1769902653336,0.01009477,79079.0,79059.0,0.10256]
[1769902653732,0.00996117,79076.0,79059.0,0.10256]
[1769902653939,0.00996117,79072.0,79059.0,0.10256]
[1769902654440,0.00996117,79070.0,79050.0,0.012665]
[1769902654737,0.00996117,79070.0,79051.0,0.12647741]
[1769902655328,0.11248117,79070.0,79051.0,0.12647741]
[1769902655532,0.11248117,79070.0,79052.0,0.012665]
[1769902656237,0.11248117,79070.0,79049.0,0.10252]
[1769902656629,0.11248117,79070.0,79050.0,0.12648461]
[1769902657030,0.10252,79070.0,79055.0,0.00900106]
[1769902657233,0.0001336,79079.0,79066.0,0.00900106]
[1769902657436,0.0001336,79079.0,79070.0,0.012662]
[1769902657940,0.0001336,79079.0,79067.0,0.012663]
[1769902658937,0.0001336,79079.0,79064.0,0.02166406]
[1769902660839,0.0001336,79079.0,79064.0,0.00900106]
[1769902661142,0.012661,79077.0,79058.0,0.10252]
[1769902661340,0.02223459,79077.0,79058.0,0.10252]
[1769902661538,0.2603981,79070.0,79047.0,0.12646781]
[1769902661739,0.10252,79077.0,79057.0,0.00924047]
[1769902661939,0.10252,79077.0,79064.0,0.012663]
[1769902662245,0.10252,79077.0,79066.0,0.012663]
[1769902662446,0.10252,79077.0,79064.0,0.00924047]
[1769902662948,0.10252,79077.0,79065.0,0.012663]
[1769902664150,0.0001336,79079.0,79066.0,0.00924047]
[1769902664946,0.0001336,79079.0,79071.0,0.012662]
[1769902665141,0.0001336,79079.0,79066.0,0.00924047]
[1769902665341,0.10252,79082.0,79079.0,0.012661]
[1769902665342,3.7e-07,79082.0,79079.0,0.012661]
[1769902665541,0.10252,79091.0,79079.0,0.012661]
[1769902666040,0.10252,79091.0,79066.0,0.012663]
[1769902666041,0.10252,79091.0,79081.0,0.00924047]
[1769902666245,0.10252,79091.0,79083.0,0.01266]
[1769902666447,0.10252,79091.0,79080.0,0.012661]
[1769902668446,0.09853992,79091.0,79084.0,0.01266]
[1769902668645,0.00955521,79108.0,79084.0,0.00924047]
[1769902668846,0.10252,79107.0,79087.0,0.00924047]
[1769902669049,0.10252,79107.0,79094.0,0.012658]
[1769902670851,0.101244,79107.0,79097.0,0.012658]
[1769902671048,0.10252,79110.0,79096.0,0.012658]
[1769902674148,0.3629181,79110.0,79096.0,0.012658]
[1769902674751,0.37247331,79110.0,79093.0,0.012659]
[1769902674950,0.3629181,79110.0,79093.0,0.012659]
[1769902675150,0.2603981,79110.0,79092.0,0.10252]
[1769902676147,0.2603981,79110.0,79093.0,0.00924047]
[1769902676953,0.2603981,79110.0,79096.0,0.012658]
[1769902677348,0.2603981,79110.0,79093.0,0.02189847]
[1769902677947,0.2603981,79110.0,79095.0,0.012658]
[1769902678949,0.26995331,79110.0,79095.0,0.012658]
[1769902679643,0.2603981,79110.0,79099.0,0.012658]
[1769902679849,0.2603981,79110.0,79095.0,0.00924047]
[1769902680546,0.2603981,79110.0,79101.0,0.012657]
[1769902680741,0.2603981,79110.0,79087.0,0.01266]
[1769902680742,0.00955521,79109.0,79075.0,0.00012179]
[1769902680946,1e-07,79090.0,79078.0,0.10252]
[1769902681755,0.00955521,79089.0,79078.0,0.10252]
[1769902682154,1e-07,79090.0,79060.0,0.10752]
[1769902682155,0.00955521,79087.0,79060.0,0.10752]
[1769902682349,0.00955521,79066.0,79042.0,0.012667]
[1769902682656,0.00955521,79066.0,79046.0,0.012666]
[1769902683253,9.697e-05,79065.0,79046.0,0.012666]
[1769902683555,0.00965218,79065.0,79046.0,0.012666]
[1769902684454,0.00965218,79065.0,79039.0,0.02005286]
[1769902684657,0.2603981,79050.0,79029.0,0.00924047]
[1769902684849,0.00955521,79048.0,79029.0,0.0199995]
[1769902685156,0.00955521,79048.0,79028.0,0.12649341]
[1769902685357,0.00955521,79048.0,79023.0,0.00011062]
[1769902685358,0.00955521,79048.0,79026.0,0.10252]
[1769902685557,0.00955521,79035.0,79024.0,0.12652061]
[1769902685756,0.112197,79034.0,79007.0,0.00924047]
[1769902685947,0.00955521,79033.0,79007.0,0.00924047]
[1769902686152,0.00955521,79033.0,79005.0,0.12652061]
[1769902686354,0.00955521,79033.0,79004.0,0.012673]
[1769902686554,0.00955521,79033.0,79006.0,0.12655024]
[1769902686751,0.2603981,79020.0,79006.0,0.12655024]
[1769902686954,0.00904703,79008.0,79000.0,0.477]
[1769902687252,0.012674,78998.0,78971.0,0.005]
[1769902687451,0.2603981,78990.0,78971.0,0.005]
[1769902687646,0.2603981,78990.0,78967.0,0.012679]
[1769902687848,0.2603981,78990.0,78964.0,0.012679]
[1769902688253,0.2603981,78990.0,78963.0,0.12657586]
[1769902688463,0.00010621,78989.0,78961.0,0.01834383]
[1769902688758,0.2603981,78971.0,78955.0,0.10252]
[1769902688950,0.2603981,78971.0,78967.0,0.001]
[1769902689158,0.2603981,78971.0,78955.0,0.10252]
[1769902689357,0.2603981,78971.0,78955.0,0.01837505]
[1769902689557,0.2603981,78971.0,78956.0,0.12663196]
[1769902690058,0.2603981,78971.0,78953.0,0.01006454]
[1769902690259,0.2603981,78971.0,78957.0,0.12663196]
[1769902690455,0.012679,78965.0,78912.0,0.012688]
[1769902690758,0.2603981,78958.0,78934.0,0.10256]
[1769902690960,0.10256,78957.0,78934.0,0.10256]
[1769902691355,0.10256,78957.0,78937.0,0.01805576]
[1769902691556,0.115241,78957.0,78921.0,0.012686]
[1769902691754,0.2603981,78947.0,78921.0,0.012686]
[1769902692056,0.10256,78946.0,78921.0,0.012686]
[1769902692260,0.10256,78946.0,78926.0,0.012685]
[1769902692462,9.668e-05,78945.0,78926.0,0.012685]
[1769902692760,9.668e-05,78945.0,78921.0,0.03110556]
[1769902692955,0.33356,78944.0,78921.0,0.01841956]
[1769902693160,0.2603981,78931.0,78916.0,0.10256]
[1769902693462,0.1026,78936.0,78917.0,0.012687]
[1769902693756,9.668e-05,78945.0,78917.0,0.012687]
[1769902693757,0.2603981,78940.0,78917.0,0.012687]
[1769902693953,0.3336,78936.0,78917.0,0.012687]
[1769902694558,0.2603981,78927.0,78910.0,0.012688]
[1769902694849,0.1026,78926.0,78910.0,0.012688]
[1769902695055,0.1026,78926.0,78914.0,0.012687]
[1769902695257,0.1026,78926.0,78906.0,0.01008841]
[1769902695454,0.1026,78926.0,78907.0,0.02277641]
[1769902695756,0.1026,78926.0,78907.0,0.16772033]
[1769902695956,0.1026,78926.0,78907.0,0.04100974]
[1769902696156,0.1026,78926.0,78908.0,0.12671059]
[1769902696460,0.1026,78926.0,78907.0,0.03092133]
[1769902697054,0.2603981,78940.0,78909.0,0.01013026]
[1769902697259,0.2603981,78940.0,78920.0,0.012686]
[1769902698058,0.2603981,78940.0,78916.0,0.00961605]
[1769902698258,0.2603981,78960.0,78927.0,0.00961605]
[1769902698454,0.43925793,78959.0,78936.0,0.012684]
[1769902699360,0.2603981,78946.0,78928.0,0.10264]
[1769902699556,0.2603981,78946.0,78931.0,0.012685]
[1769902699861,0.2603981,78946.0,78937.0,0.012684]
[1769902700258,0.10264,78948.0,78937.0,0.012684]
[1769902700860,0.10264,78948.0,78936.0,0.013684]
[1769902701265,0.10264,78948.0,78928.0,0.10264]
[1769902701460,0.10264,78948.0,78936.0,0.012684]
[1769902701762,0.00300765,78958.0,78942.0,0.012683]
[1769902701965,0.00014972,78958.0,78942.0,0.012683]
[1769902702362,0.00014972,78958.0,78926.0,0.3338]
[1769902702363,0.00014972,78958.0,78943.0,0.012684]
[1769902702555,0.00014972,78958.0,78941.0,0.00961605]
[1769902702759,0.00014972,78958.0,78941.0,0.02230005]
[1769902702955,0.00014972,78958.0,78942.0,0.012683]
[1769902703159,0.00321894,78958.0,78941.0,0.012684]
[1769902703464,0.00321894,78958.0,78933.0,0.012684]
[1769902703961,0.00321894,78958.0,78934.0,0.012684]
[1769902704362,0.00321894,78958.0,78935.0,0.012684]
[1769902704765,0.2603981,78945.0,78935.0,0.012684]
[1769902705267,0.00305887,78942.0,78916.0,0.012687]
[1769902705462,0.00305887,78932.0,78908.0,0.012684]
[1769902705657,0.2603981,78920.0,78908.0,0.13936248]
[1769902705874,0.2603981,78920.0,78900.0,0.00015676]
[1769902705875,0.3630781,78920.0,78900.0,0.00015676]
[1769902706169,0.00306648,78918.0,78900.0,0.00015676]
[1769902708263,0.0001557,78919.0,78901.0,0.012684]
[1769902708667,0.00322088,78918.0,78900.0,0.00015676]
[1769902708972,0.00322088,78918.0,78901.0,0.012689]
[1769902709368,0.33392,78917.0,78901.0,0.012689]
[1769902709568,0.33392,78917.0,78900.0,0.00015676]
[1769902710868,0.0032112,78916.0,78900.0,0.00015676]
[1769902711772,0.0001557,78919.0,78904.0,0.012689]
[1769902712172,0.0001557,78919.0,78905.0,0.012684]
[1769902713775,0.00330101,78918.0,78905.0,0.012684]
[1769902713978,0.00330101,78918.0,78900.0,0.00015676]
[1769902714275,0.00330101,78918.0,78900.0,0.01284076]
[1769902714671,0.00330101,78918.0,78901.0,0.012689]
[1769902714871,0.0001557,78919.0,78900.0,0.01284076]
[1769902715071,0.0001557,78919.0,78901.0,0.00961605]
[1769902715273,0.0001557,78919.0,78902.0,0.00961605]
[1769902715469,0.0001557,78919.0,78908.0,0.012688]
[1769902715677,0.00336319,78929.0,78908.0,0.012684]
[1769902715976,0.00336319,78929.0,78911.0,0.012688]
[1769902716171,0.43672,78928.0,78911.0,0.012688]
[1769902716376,0.43672,78928.0,78912.0,0.012684]
[1769902716577,0.00013286,78927.0,78905.0,0.00961605]
[1769902716780,0.00013286,78927.0,78915.0,0.012687]
[1769902716975,0.2603981,78940.0,78914.0,0.00971235]
[1769902717175,0.10272,78939.0,78914.0,0.00971235]
[1769902717382,0.00336319,78937.0,78913.0,0.10272]
[1769902717674,0.2603981,78924.0,78915.0,0.012684]
[1769902717978,7.148e-05,78923.0,78913.0,0.10272]
[1769902718278,7.148e-05,78923.0,78908.0,0.012688]
[1769902718478,7.148e-05,78923.0,78909.0,0.017684]
[1769902718779,0.00342518,78923.0,78909.0,0.017684]
[1769902719084,0.00342518,78923.0,78909.0,0.012684]
[1769902719775,0.00334113,78922.0,78900.0,0.00015676]
[1769902719977,0.012687,78917.0,78902.0,0.012684]
[1769902720179,0.10272,78916.0,78902.0,0.012684]
[1769902720778,0.10272,78916.0,78900.0,0.00015676]
[1769902721775,0.00331603,78915.0,78900.0,0.00015676]
[1769902722579,0.00331603,78915.0,78901.0,0.012689]
[1769902722876,0.10272,78916.0,78903.0,0.012689]
[1769902723084,0.10272,78916.0,78900.0,0.01876782]
[1769902723582,0.10272,78916.0,78907.0,0.012688]
[1769902723884,7.148e-05,78923.0,78914.0,0.012687]
[1769902724080,0.09868884,78925.0,78916.0,0.012687]
[1769902724279,0.10272,78932.0,78920.0,0.012686]
[1769902724576,0.00342577,78940.0,78915.0,0.00990472]
[1769902724782,0.10272,78944.0,78926.0,0.012685]
[1769902724783,0.19031151,78939.0,78926.0,0.012685]
[1769902724978,0.19031151,78938.0,78923.0,0.012686]
[1769902725183,0.10272,78944.0,78920.0,0.012686]
[1769902725378,0.18292925,78943.0,78922.0,0.012686]
[1769902725683,0.10272,78944.0,78924.0,0.012686]
[1769902725878,0.25173416,78968.0,78924.0,0.012686]
[1769902725879,0.00377243,78955.0,78924.0,0.00990472]
[1769902726073,0.00377243,78953.0,78925.0,0.00870634]
[1769902726277,0.00377243,78941.0,78913.0,0.012687]
[1769902726478,0.00377243,78930.0,78909.0,0.10272]
[1769902726780,0.00377243,78915.0,78906.0,0.12668009]
[1769902726977,0.00377243,78915.0,78900.0,0.0088631]
[1769902727272,0.00377243,78915.0,78900.0,0.00015676]
[1769902727472,0.01645943,78915.0,78900.0,0.00015676]
[1769902727672,0.0039059,78914.0,78900.0,0.00015676]
[1769902727883,0.10272,78913.0,78900.0,0.00015676]
[1769902728082,0.10272,78913.0,78900.0,0.0088631]
[1769902728481,0.012688,78909.0,78900.0,0.00015676]
[1769902728681,0.0165939,78909.0,78897.0,0.00870634]
[1769902728876,0.0165939,78909.0,78896.0,0.0333925]
[1769902729182,0.0039059,78908.0,78896.0,0.0333925]
[1769902729681,0.00012983,78907.0,78896.0,0.0333925]
[1769902732984,0.012689,78905.0,78896.0,0.01355549]
[1769902733285,0.10272,78904.0,78896.0,0.01355549]
[1769902733586,0.01269,78899.0,78896.0,4.9e-07]
[1769902733885,0.10272,78904.0,78896.0,4.9e-07]
[1769902733886,0.012689,78902.0,78896.0,4.9e-07]
[1769902734082,0.00411269,78897.0,78882.0,0.10272]
[1769902734385,0.01269,78901.0,78884.0,0.00870634]
[1769902734586,0.17237643,78900.0,78884.0,0.00870634]
[1769902734786,0.18506643,78899.0,78884.0,0.00870634]
[1769902734976,0.17237643,78898.0,78884.0,0.00870634]
[1769902735281,0.33408,78901.0,78884.0,0.00870634]
[1769902735482,0.10272,78904.0,78884.0,0.01861106]
[1769902735686,0.09878438,78904.0,78893.0,0.012691]
[1769902735879,0.012687,78915.0,78887.0,0.00990472]
[1769902735880,0.10276,78909.0,78890.0,0.012691]
[1769902736080,0.10276,78909.0,78890.0,0.02259572]
[1769902736384,0.10276,78909.0,78891.0,0.00870634]
[1769902737190,0.012685,78927.0,78893.0,0.00990472]
[1769902737485,0.00404712,78922.0,78893.0,0.00990472]
[1769902737684,0.012686,78920.0,78895.0,0.00990472]
[1769902737886,0.10276,78919.0,78897.0,0.00990472]
[1769902738081,0.10276,78920.0,78900.0,0.00990472]
[1769902738281,0.10276,78920.0,78902.0,0.00990472]
[1769902738685,0.10276,78920.0,78904.0,0.00990472]
[1769902741179,0.10276,78920.0,78915.0,0.00482]
[1769902741383,0.10276,78920.0,78904.0,0.00990472]
[1769902742292,0.10276,78920.0,78915.0,0.00482]
[1769902742589,0.10276,78920.0,78904.0,0.00990472]
[1769902742886,0.10276,78936.0,78904.0,0.00990472]
[1769902743081,0.10276,78936.0,78912.0,0.00990472]
[1769902743593,0.10276,78936.0,78916.0,0.00990472]
[1769902743790,0.10276,78936.0,78919.0,0.00990472]
[1769902744090,0.10276,78936.0,78921.0,0.00990472]
[1769902744293,0.09776,78945.0,78921.0,0.00990472]
[1769902744489,0.00399325,78944.0,78922.0,0.00870634]
[1769902744690,0.00399325,78940.0,78921.0,0.10276]
[1769902744990,0.00399325,78940.0,78921.0,0.10272]
[1769902745580,0.00399325,78938.0,78916.0,0.10272]
[1769902745986,0.00399325,78938.0,78919.0,0.012687]
[1769902746183,0.10186795,78945.0,78923.0,0.012686]
[1769902746390,0.09776,78945.0,78926.0,0.012685]
[1769902746593,0.09776,78945.0,78930.0,0.00990472]
[1769902747188,0.10186795,78945.0,78925.0,0.10272]
[1769902747590,0.00410795,78944.0,78925.0,0.10272]
[1769902747789,0.01679095,78944.0,78925.0,0.10272]
[1769902748181,0.00410795,78944.0,78925.0,0.10272]
[1769902748386,0.00410795,78944.0,78925.0,0.115405]
[1769902750487,0.00410795,78944.0,78925.0,0.012685]
[1769902750688,0.00410795,78944.0,78921.0,0.012686]
[1769902750890,0.00410795,78944.0,78923.0,0.012686]
[1769902751388,0.00409518,78938.0,78917.0,0.012687]
[1769902751590,0.00409518,78936.0,78919.0,0.012686]
[1769902752493,0.00409518,78936.0,78921.0,0.012686]
[1769902752697,0.00409518,78936.0,78916.0,0.10272]
[1769902753393,0.10272,78937.0,78916.0,0.10272]
[1769902754092,0.10272,78937.0,78923.0,0.00927523]
[1769902754294,0.012679,78968.0,78944.0,0.012683]
[1769902754593,0.33308103,78975.0,78947.0,0.00999999]
[1769902754798,0.012678,78974.0,78953.0,0.012681]
[1769902755293,0.33308103,78975.0,78948.0,0.10272]
[1769902755495,0.012679,78967.0,78948.0,0.10272]
[1769902755684,0.012679,78968.0,78951.0,0.00037]
[1769902756195,0.10272,78967.0,78951.0,0.00037]
[1769902756996,0.10272,78967.0,78958.0,0.01268]
[1769902757292,0.43580103,78975.0,78958.0,0.02962694]
[1769902757499,0.43580103,78975.0,78959.0,0.01268]
[1769902757890,0.43580103,78975.0,78961.0,0.01268]
[1769902758197,0.10272,78975.0,78960.0,0.13931597]
[1769902758397,0.10272,78975.0,78960.0,0.01268]
[1769902758699,0.10272,78975.0,78958.0,0.01056985]
[1769902759092,0.10272,78975.0,78959.0,0.01268]
[1769902759292,0.10272,78975.0,78961.0,0.01268]
[1769902759792,0.10272,78975.0,78957.0,0.10272]
[1769902760700,0.10272,78975.0,78952.0,0.10272]
[1769902760701,0.00888015,78974.0,78952.0,0.10272]
[1769902760889,0.00888015,78974.0,78952.0,0.01763621]
[1769902761093,0.00888015,78974.0,78947.0,0.22931678]
[1769902761296,0.012679,78964.0,78948.0,0.10268]
[1769902761497,0.10268,78965.0,78943.0,0.10268]
[1769902761696,0.10268,78964.0,78944.0,0.012683]
[1769902762096,0.10268,78964.0,78943.0,0.11988034]
[1769902762292,0.10268,78964.0,78945.0,0.12665281]
[1769902762293,0.11149196,78964.0,78945.0,0.12665281]
[1769902762502,0.11149196,78964.0,78943.0,0.13256334]
[1769902762800,0.11149196,78964.0,78945.0,0.012682]
[1769902763594,0.10268,78964.0,78947.0,0.012682]
[1769902763794,0.10268,78964.0,78949.0,0.012682]
[1769902763998,0.10268,78964.0,78953.0,0.012681]
[1769902764601,0.10268,78964.0,78950.0,0.012681]
[1769902765103,0.10268,78964.0,78947.0,0.012682]
[1769902765302,0.00881681,78970.0,78946.0,0.00927523]
[1769902765504,0.10268,78971.0,78948.0,0.1266488]
[1769902765797,0.10268,78971.0,78948.0,0.00927523]
[1769902765998,0.10268,78971.0,78952.0,0.012681]
[1769902766196,0.10268,78971.0,78949.0,0.13933161]
[1769902766403,0.00876686,78970.0,78949.0,0.012682]
[1769902766804,0.00876686,78970.0,78951.0,0.012681]
[1769902769306,0.00876686,78970.0,78943.0,0.11988034]
[1769902769307,0.0086006,78970.0,78952.0,0.1266456]
[1769902769508,0.0086006,78970.0,78943.0,0.01720034]
[1769902769509,0.0086006,78962.0,78943.0,0.01720034]
[1769902769710,0.0212806,78962.0,78941.0,0.012683]
[1769902769908,0.10268,78961.0,78941.0,0.012683]
[1769902771414,0.00858716,78959.0,78938.0,0.012683]
[1769902771605,0.00858716,78957.0,78938.0,0.01691688]
[1769902771807,0.00858716,78957.0,78936.0,0.13934484]
[1769902772007,0.00858716,78957.0,78936.0,0.012684]
[1769902772307,0.11139507,78956.0,78936.0,0.012684]
[1769902772509,0.11139507,78956.0,78938.0,0.012684]
[1769902772707,0.10268,78956.0,78942.0,0.012683]
[1769902772912,0.10268,78956.0,78940.0,0.00927523]
[1769902773113,0.10268,78956.0,78941.0,0.02195823]
[1769902773306,0.00871507,78955.0,78940.0,0.012683]
[1769902773512,0.00871507,78955.0,78938.0,0.01761551]
[1769902773708,0.00871507,78955.0,78933.0,0.10268]
[1769902773910,0.012681,78953.0,78933.0,0.10268]
[1769902774315,0.012682,78949.0,78933.0,0.10268]
[1769902774506,0.00864221,78948.0,78933.0,0.10268]
[1769902775609,0.012681,78952.0,78933.0,0.11993878]
[1769902777008,0.012681,78955.0,78934.0,0.012684]
[1769902777208,0.00862385,78952.0,78934.0,0.012684]
[1769902779314,0.012681,78953.0,78934.0,0.012684]
[1769902779508,0.115361,78956.0,78936.0,0.012684]
[1769902779715,0.2612682,78950.0,78936.0,0.012684]
[1769902779914,0.2612682,78950.0,78933.0,0.13262278]
[1769902781905,0.2612682,78950.0,78933.0,0.11993878]
[1769902782504,0.2612682,78950.0,78936.0,0.02216318]
[1769902782706,0.2612682,78950.0,78936.0,0.00947918]
[1769902783115,0.2612682,78950.0,78939.0,0.012683]
[1769902783618,0.2612682,78950.0,78942.0,0.00947918]
[1769902783814,0.10268,78956.0,78942.0,0.00947918]
[1769902784014,0.2612682,78960.0,78947.0,0.012682]
[1769902784213,0.2612682,78960.0,78945.0,0.012682]
[1769902784716,0.2612682,78960.0,78946.0,0.012682]
[1769902784912,0.2612682,78960.0,78947.0,0.012682]
[1769902785516,0.2612682,78960.0,78948.0,0.012682]
[1769902785718,0.012678,78975.0,78954.0,0.012681]
[1769902786213,0.02267229,78973.0,78952.0,0.11215918]
[1769902786419,0.00999429,78963.0,78944.0,0.012683]
[1769902786617,0.00999429,78960.0,78938.0,0.00947918]
[1769902786918,0.2612682,78950.0,78938.0,0.12664239]
[1769902787218,0.2612682,78950.0,78937.0,0.10268]
[1769902787415,0.2612682,78950.0,78938.0,0.12664239]
[1769902787719,0.2612682,78950.0,78937.0,0.10268]
[1769902787914,0.2612682,78950.0,78933.0,0.01725878]
[1769902787915,0.012682,78947.0,78933.0,0.01725878]
[1769902788221,0.00999429,78946.0,78928.0,0.10268]
[1769902789512,0.00999429,78945.0,78925.0,0.00482]
[1769902789713,0.10268,78944.0,78925.0,0.00482]
[1769902790025,0.10268,78944.0,78926.0,0.1266833]
[1769902790520,0.10268,78944.0,78930.0,0.012685]
[1769902790818,0.10268,78944.0,78933.0,0.00947918]
[1769902791321,0.10268,78944.0,78930.0,0.01742151]
[1769902791622,0.00999429,78943.0,78925.0,0.012686]
[1769902791918,0.00999429,78943.0,78926.0,0.1266833]
[1769902792520,0.10268,78944.0,78926.0,0.1266833]
[1769902792923,0.10268,78944.0,78926.0,0.14385483]
[1769902793621,0.00999429,78943.0,78926.0,0.14385483]
[1769902794324,0.00999429,78943.0,78926.0,0.15653983]
[1769902796823,0.10268,78944.0,78926.0,0.15653983]
[1769902797425,0.2612682,78936.0,78926.0,0.01717153]
[1769902797626,0.2612682,78936.0,78924.0,0.00015214]
[1769902798129,0.00999429,78942.0,78924.0,0.01283814]
[1769902799727,0.00999429,78942.0,78924.0,0.0298764]
[1769902799928,0.00706429,78942.0,78924.0,0.0298764]
[1769902803037,0.00706429,78942.0,78926.0,0.00482]
[1769902803233,0.43664,78944.0,78927.0,0.00947918]
[1769902803433,0.43664,78944.0,78927.0,0.02216418]
[1769902803937,0.43664,78944.0,78927.0,0.012685]
[1769902804433,0.44663429,78944.0,78927.0,0.012685]
[1769902806038,0.43615,78944.0,78927.0,0.02216418]
[1769902806233,0.43615,78944.0,78928.0,0.00947918]
[1769902806839,0.43615,78944.0,78931.0,0.00482]
[1769902807138,0.10219,78944.0,78931.0,0.00482]
[1769902807727,0.2612682,78950.0,78932.0,0.00990533]
[1769902807928,0.10272,78954.0,78943.0,0.00990533]
[1769902808133,0.07372942,78954.0,78945.0,0.00990533]
[1769902808329,0.07372942,78954.0,78932.0,0.1266825]
[1769902808330,0.2612682,78960.0,78932.0,0.00990533]
[1769902808635,0.2612682,78960.0,78947.0,0.00482]
[1769902810439,0.00910937,78958.0,78931.0,0.00990533]
[1769902810636,0.00910937,78958.0,78936.0,0.012684]
[1769902810841,0.00910937,78958.0,78937.0,0.00990533]
[1769902811641,0.02178937,78958.0,78937.0,0.00990533]
[1769902812342,0.00910937,78957.0,78931.0,0.00990533]
[1769902812643,0.012681,78956.0,78931.0,0.00990533]
[1769902812838,0.02179037,78957.0,78940.0,0.00448]
[1769902813045,0.00910937,78957.0,78940.0,0.00448]
[1769902813344,0.00910937,78953.0,78940.0,0.00448]
[1769902813542,0.00910937,78951.0,78929.0,0.10272]
[1769902813842,0.2612682,78940.0,78930.0,0.12666806]
[1769902814146,0.2589682,78940.0,78930.0,0.12666806]
[1769902815233,0.2589682,78940.0,78924.0,0.02709573]
[1769902815640,0.2589682,78940.0,78925.0,0.12668651]
[1769902816144,0.00910937,78939.0,78925.0,0.12668651]
[1769902816345,0.00910937,78937.0,78924.0,0.0171904]
[1769902816739,0.2612682,78936.0,78924.0,0.0171904]
[1769902817342,0.2612682,78936.0,78924.0,0.0298764]
[1769902817743,0.10268,78938.0,78924.0,0.0171904]
[1769902817943,0.2612682,78937.0,78924.0,0.0171904]
[1769902818146,0.10268,78938.0,78925.0,0.00990533]
[1769902818343,0.10268,78938.0,78928.0,0.012685]
[1769902818543,0.07838,78938.0,78934.0,0.00990533]
[1769902818743,0.10272,78947.0,78935.0,0.012684]
[1769902818946,0.2612682,78945.0,78934.0,0.00990533]
[1769902819149,0.2612682,78945.0,78929.0,0.012685]
[1769902819448,0.2612682,78940.0,78929.0,0.012685]
[1769902821341,0.2612682,78940.0,78927.0,0.012685]
[1769902821739,0.2612682,78940.0,78924.0,0.0171904]
[1769902821740,0.00910937,78938.0,78925.0,0.12668731]
[1769902821939,0.00910937,78936.0,78924.0,0.0171904]
[1769902822446,0.27037757,78935.0,78924.0,0.0171904]
[1769902822646,0.00910937,78935.0,78924.0,0.0171904]
[1769902823048,0.00910937,78935.0,78925.0,0.001]
[1769902823448,0.2612682,78936.0,78925.0,0.001]
[1769902823849,0.2612682,78940.0,78926.0,0.012685]
[1769902824045,0.2612682,78940.0,78932.0,0.012684]
[1769902824249,0.437,78947.0,78927.0,0.00990533]
[1769902824444,0.2612682,78946.0,78927.0,0.00990533]
[1769902825342,0.2612682,78950.0,78936.0,0.012684]
[1769902825645,0.00910937,78963.0,78948.0,0.012682]
[1769902825845,0.3639882,78966.0,78950.0,0.012682]
[1769902826050,0.3639882,78966.0,78952.0,0.012681]
[1769902826350,0.3639882,78966.0,78949.0,0.012682]
[1769902826846,0.3639882,78966.0,78877.0,0.76605956]
[1769902826847,0.2612682,78966.0,78953.0,0.012681]
[1769902827054,0.2612682,78966.0,78955.0,0.012681]
[1769902827352,0.012677,78979.0,78953.0,0.00990533]
[1769902827353,0.44718937,78979.0,78953.0,0.00990533]
[1769902827551,0.2612682,78978.0,78953.0,0.00990533]
[1769902827750,0.2590182,78978.0,78955.0,0.00990533]
[1769902827954,0.00910937,78977.0,78956.0,0.10272]
[1769902828348,0.00910937,78977.0,78957.0,0.12663678]
[1769902830855,0.33652,78976.0,78957.0,0.12663678]
[1769902831256,0.2590182,78975.0,78957.0,0.12663678]
[1769902831952,0.2590182,78975.0,78957.0,0.13931678]
[1769902833559,0.2590182,78975.0,78959.0,0.01268]
[1769902835162,0.2612682,78980.0,78956.0,0.10272]
[1769902835163,0.33804,78988.0,78973.0,0.012678]
[1769902835355,0.44084,78989.0,78970.0,0.00990533]
[1769902835560,0.2590182,78988.0,78970.0,0.00990533]
[1769902835955,0.44084,78989.0,78972.0,0.00990533]
[1769902836150,0.6998582,78989.0,78978.0,0.012677]
[1769902837367,0.6998582,78989.0,78980.0,0.012677]
[1769902839861,0.00910937,78998.0,78980.0,0.012677]
[1769902839862,0.34004,78996.0,78981.0,0.12660711]
[1769902840166,0.34004,78996.0,78982.0,0.012676]
[1769902840365,0.34004,78996.0,78981.0,0.12660711]
[1769902840665,0.34004,78996.0,78981.0,0.012677]
[1769902841265,0.34976438,78996.0,78981.0,0.012677]
[1769902841467,0.34976438,78996.0,78982.0,0.1266007]
[1769902842065,0.009008,78991.0,78977.0,0.10268]
[1769902842463,0.009008,78990.0,78977.0,0.10268]
[1769902842962,0.012675,78994.0,78977.0,0.10268]
[1769902843169,0.33384,78993.0,78977.0,0.10268]
[1769902843361,0.33384,78993.0,78978.0,0.012677]
[1769902844067,0.009008,78992.0,78977.0,0.10268]
[1769902844463,0.33384,78993.0,78977.0,0.115357]
[1769902845965,0.009008,78992.0,78977.0,0.10268]
[1769902846167,0.10268,78999.0,78983.0,0.012676]
[1769902846362,0.2590182,78996.0,78978.0,0.12660631]
[1769902846566,0.2590182,78996.0,78977.0,0.10268]
[1769902846567,0.009008,78995.0,78977.0,0.10268]
[1769902846866,0.009008,78995.0,78978.0,0.012677]
[1769902847771,0.009008,78995.0,78979.0,0.012677]
[1769902850470,0.32488824,78999.0,78989.0,0.00949064]
[1769902850770,0.009008,79010.0,78989.0,0.00949064]
[1769902850965,0.44452,79009.0,78996.0,0.012674]
[1769902852065,0.44468,79008.0,78990.0,0.00949064]
[1769902852261,0.44468,79008.0,78998.0,0.012674]
[1769902852262,0.34204,79007.0,78998.0,0.012674]
[1769902854371,0.34204,79007.0,78995.0,0.012674]
[1769902854571,0.10264,79008.0,78995.0,0.012674]